lending/lending_fUSD_20240219
["ID","MTS","AMOUNT","RATE_DAILY","PERIOD"]
[314449856,1708361489205,-1511.14,0.00046849,18]
[314449857,1708361489215,-500.0,0.00046849,18]
[314449858,1708361489227,-515.36349242,0.00046849,18]
[314449859,1708361489238,-525.50593212,0.00046849,18]
[314449860,1708361489247,-253.06750099,0.00046849,18]
[314449861,1708361489257,-368.45080313,0.00046849,18]
[314449862,1708361489267,-500.0,0.00046849,18]
[314449863,1708361489277,-514.52630735,0.00046849,18]
[314449864,1708361489288,-500.0,0.00046849,18]
[314449865,1708361489297,-500.0,0.00046849,18]
[314449866,1708361489308,-527.53076554,0.00046849,18]
[314449867,1708361489318,-1587.45,0.00046849,18]
[314449868,1708361489328,-500.0,0.00046849,18]
[314449869,1708361489338,-510.07298095,0.00046849,18]
[314449870,1708361489348,-500.0,0.00046849,18]
[314449871,1708361489358,-521.56147594,0.00046849,18]
[314449872,1708361489368,-500.0,0.00046849,18]
[314449873,1708361489378,-494.21859388,0.00046849,18]
[314449874,1708361489388,-500.0,0.00046849,14]
[314449875,1708361489398,-500.0,0.00046849,18]
[314449876,1708361489408,-9227.81,0.00046849,18]
[314449877,1708361489419,-500.0,0.00046849,18]
[314449878,1708361489428,-533.18611531,0.00046849,18]
[314449879,1708361489438,-500.0,0.00046849,18]
[314449880,1708361489448,-500.0,0.00046849,18]
[314449881,1708361489458,-518.14978181,0.00046849,18]
[314449882,1708361489468,-523.09828267,0.00046849,18]
[314449883,1708361489479,-500.0,0.00046849,18]
[314449884,1708361489489,-500.0,0.00046849,18]
[314449885,1708361489499,-1867.41,0.00046849,18]
[314449886,1708361489509,-500.0,0.00046849,18]
[314449887,1708361489519,-500.0,0.00046849,18]
[314449888,1708361489529,-500.0,0.00046849,18]
[314449889,1708361489538,-1111.54,0.00046849,18]
[314449890,1708361489548,-500.0,0.00046849,18]
[314449891,1708361489558,-500.0,0.00046849,18]
[314449892,1708361489568,-636.23663929,0.00046849,18]
[314449893,1708361489578,-541.52717988,0.00046849,18]
[314449894,1708361489588,-500.0,0.00046849,18]
[314449895,1708361489598,-500.0,0.00046849,18]
[314449896,1708361489608,-500.0,0.00046849,18]
[314449897,1708361489618,-947.75,0.00046849,18]
[314449898,1708361489628,-500.0,0.00046849,18]
[314449899,1708361489638,-500.0,0.00046849,18]
[314449900,1708361489649,-500.0,0.00046849,18]
[314449901,1708361489659,-500.0,0.00046849,18]
[314449902,1708361489670,-523.8687977,0.00046849,18]
[314449903,1708361489680,-500.0,0.00046849,18]
[314449904,1708361489691,-500.0,0.00046849,18]
[314449905,1708361489701,-500.0,0.00046849,18]
[314449906,1708361489711,-512.40256697,0.00046849,18]
[314449907,1708361489721,-500.0,0.00046849,18]
[314449908,1708361489732,-500.0,0.00046849,18]
[314449909,1708361489742,-500.0,0.00046849,18]
[314449910,1708361489752,-500.0,0.00046849,18]
[314449911,1708361489762,-518.78686964,0.00046849,18]
[314449912,1708361489772,-500.0,0.00046849,18]
[314449913,1708361489782,-525.15046447,0.00046849,18]
[314449914,1708361489791,-500.0,0.00046849,18]
[314449915,1708361489801,-500.0,0.00046849,18]
[314449916,1708361489811,-500.0,0.00046849,18]
[314449917,1708361489820,-509.0155997,0.00046849,18]
[314449918,1708361489830,-500.0,0.00046849,18]
[314449919,1708361489841,-500.0,0.00046849,18]
[314449920,1708361489851,-500.0,0.00046849,18]
[314449921,1708361489861,-518.19328627,0.00046849,18]
[314449922,1708361489871,-500.0,0.00046849,18]
[314449923,1708361489882,-500.0,0.00046849,18]
[314449924,1708361489892,-500.0,0.00046849,18]
[314449925,1708361489903,-500.0,0.00046849,18]
[314449926,1708361489912,-500.0,0.00046849,18]
[314449927,1708361489923,-500.0,0.00046849,18]
[314449928,1708361489933,-500.0,0.00046849,18]
[314449929,1708361489943,-1223.17,0.00046849,18]
[314449930,1708361489952,-526.58907765,0.00046849,18]
[314449931,1708361489962,-500.0,0.00046849,18]
[314449932,1708361489975,-500.0,0.00046849,18]
[314449933,1708361489984,-500.0,0.00046849,18]
[314449934,1708361489995,-500.0,0.00046849,18]
[314449935,1708361490005,-500.0,0.00046849,18]
[314449936,1708361490015,-500.0,0.00046849,18]
[314449937,1708361490026,-500.0,0.00046849,18]
[314449938,1708361490037,-697.9,0.00046849,18]
[314449939,1708361490048,-646.16,0.00046849,18]
[314449940,1708361490060,-500.0,0.00046849,18]
[314449941,1708361490071,-500.0,0.00046849,18]
[314449942,1708361490082,-500.0,0.00046849,18]
[314449943,1708361490092,-500.0,0.00046849,18]
[314449944,1708361490102,-500.0,0.00046849,18]
[314449945,1708361490112,-500.0,0.00046849,18]
[314449946,1708361490125,-500.0,0.00046849,18]
[314449947,1708361490136,-500.0,0.00046849,18]
[314449948,1708361490147,-500.0,0.00046849,18]
[314449949,1708361490159,-500.0,0.00046849,18]
[314449950,1708361490181,-500.0,0.00046849,18]
[314449951,1708361490205,-526.76355016,0.00046849,18]
[314449952,1708361490235,-500.0,0.00046849,18]
[314449953,1708361490280,-500.0,0.00046849,18]
[314449954,1708361490308,-500.0,0.00046849,18]
[314449955,1708361490328,-500.0,0.00046849,18]
[314449956,1708361490339,-500.0,0.00046849,18]
[314449957,1708361490350,-500.0,0.00046849,18]
[314449958,1708361490361,-500.0,0.00046849,18]
[314449959,1708361490371,-500.0,0.00046849,18]
[314449960,1708361490381,-500.0,0.00046849,18]
[314449961,1708361490391,-500.0,0.00046849,20]
[314449962,1708361490401,-500.0,0.00046849,18]
[314449963,1708361490411,-500.0,0.00046849,18]
[314449964,1708361490421,-500.0,0.00046849,2]
[314449965,1708361490431,-550.19061757,0.00046849,18]
[314449966,1708361490441,-500.0,0.00046849,18]
[314449967,1708361490450,-500.0,0.00046849,18]
[314449968,1708361490460,-500.0,0.00046849,18]
[314449969,1708361490470,-500.0,0.00046849,18]
[314449970,1708361490481,-513.28989263,0.00046849,18]
[314449971,1708361490491,-500.0,0.00046849,18]
[314449972,1708361490501,-500.0,0.00046849,18]
[314449973,1708361490511,-500.0,0.00046849,18]
[314449974,1708361490521,-500.0,0.00046849,18]
[314449975,1708361490531,-500.0,0.00046849,18]
[314449976,1708361490541,-546.07,0.00046849,18]
[314449977,1708361490551,-500.0,0.00046849,18]
[314449978,1708361490562,-500.0,0.00046849,18]
[314449979,1708361490572,-500.0,0.00046849,18]
[314449980,1708361490582,-280.45072101,0.00046849,18]
[314449981,1708361490592,-500.0,0.00046849,18]
[314449982,1708361490602,-500.0,0.00046849,18]
[314449983,1708361490612,-568.42726975,0.00046849,18]
[314449984,1708361490622,-500.0,0.00046849,18]
[314449985,1708361490631,-500.0,0.00046849,18]
[314449986,1708361490642,-580.66,0.00046849,18]
[314449987,1708361490651,-500.0,0.00046849,18]
[314449988,1708361490661,-500.0,0.00046849,18]
[314449989,1708361490671,-500.0,0.00046849,18]
[314449990,1708361490681,-500.0,0.00046849,18]
[314449991,1708361490691,-522.64853293,0.00046849,18]
[314449992,1708361490701,-500.0,0.00046849,18]
[314449993,1708361490710,-602.12158325,0.00046849,18]
[314449994,1708361490721,-500.0,0.00046849,18]
[314449995,1708361490732,-500.0,0.00046849,18]
[314449996,1708361490742,-575.33,0.00046849,18]
[314449997,1708361490753,-520.28539325,0.00046849,18]
[314449998,1708361490763,-500.0,0.00046849,18]
[314449999,1708361490773,-877.69,0.00046849,18]
[314450000,1708361490783,-533.87201573,0.00046849,18]
[314450001,1708361490793,-500.0,0.00046849,18]
[314450002,1708361490804,-500.0,0.00046849,18]
[314450003,1708361490813,-500.0,0.00046849,18]
[314450004,1708361490823,-500.0,0.00046849,18]
[314450005,1708361490833,-506.60998087,0.00046849,18]
[314450006,1708361490844,-500.0,0.00046849,18]
[314450007,1708361490853,-2245.54,0.00046849,18]
[314450008,1708361490863,-500.0,0.00046849,18]
[314450009,1708361490873,-500.0,0.00046849,18]
[314450010,1708361490883,-512.8609392,0.00046849,18]
[314450011,1708361490892,-500.0,0.00046849,18]
[314450012,1708361490902,-536.55802612,0.00046849,18]
[314450013,1708361490912,-500.0,0.00046849,18]
[314450014,1708361490922,-531.04486396,0.00046849,18]
[314450015,1708361490934,-500.0,0.00046849,18]
[314450016,1708361490944,-534.86533564,0.00046849,18]
[314450017,1708361490954,-500.0,0.00046849,18]
[314450018,1708361490964,-500.0,0.00046849,18]
[314450019,1708361490979,-546.24790876,0.00046849,18]
[314450020,1708361490989,-1052.4,0.00046849,18]
[314450021,1708361490999,-500.0,0.00046849,18]
[314450022,1708361491009,-500.0,0.00046849,18]
[314450023,1708361491020,-500.0,0.00046849,18]
[314450024,1708361491030,-571.49824841,0.00046849,18]
[314450025,1708361491040,-500.0,0.00046849,18]
[314450026,1708361491050,-526.48681717,0.00046849,18]
[314450027,1708361491061,-500.0,0.00046849,18]
[314450028,1708361491071,-500.0,0.00046849,18]
[314450029,1708361491081,-368.98319114,0.00046849,18]
[314450030,1708361491091,-500.0,0.00046849,18]
[314450031,1708361491100,-568.28,0.00046849,18]
[314450032,1708361491110,-500.0,0.00046849,18]
[314450033,1708361491120,-507.51853596,0.00046849,18]
[314450034,1708361491130,-500.0,0.00046849,18]
[314450035,1708361491141,-500.0,0.00046849,18]
[314450036,1708361491151,-500.0,0.00046849,18]
[314450037,1708361491161,-643.75,0.00046849,18]
[314450038,1708361491172,-500.0,0.00046849,18]
[314450039,1708361491182,-500.0,0.00046849,18]
[314450040,1708361491191,-500.0,0.00046849,18]
[314450041,1708361491201,-500.32,0.00046849,18]
[314450042,1708361491211,-514.25812347,0.00046849,18]
[314450043,1708361491221,-500.0,0.00046849,18]
[314450044,1708361491234,-500.0,0.00046849,18]
[314450045,1708361491243,-637.72831538,0.00046849,18]
[314450046,1708361491252,-535.75071002,0.00046849,18]
[314450047,1708361491263,-524.94808951,0.00046849,18]
[314450048,1708361491273,-500.0,0.00046849,18]
[314450049,1708361491284,-500.0,0.00046849,18]
[314450050,1708361491294,-500.0,0.00046849,18]
[314450051,1708361491305,-574.24,0.00046849,18]
[314450052,1708361491314,-491.18479811,0.00046849,18]
[314450053,1708361491325,-500.0,0.00046849,18]
[314450054,1708361491335,-500.0,0.00046849,18]
[314450055,1708361491344,-500.0,0.00046849,18]
[314450056,1708361491355,-500.0,0.00046849,18]
[314450057,1708361491365,-500.0,0.00046849,18]
[314450058,1708361491375,-500.0,0.00046849,18]
[314450059,1708361491385,-522.30374421,0.00046849,18]
[314450060,1708361491394,-500.0,0.00046849,18]
[314450061,1708361491403,-500.0,0.00046849,18]
[314450062,1708361491412,-500.0,0.00046849,18]
[314450063,1708361491422,-500.0,0.00046849,18]
[314450064,1708361491432,-500.0,0.00046849,18]
[314450065,1708361491442,-500.0,0.00046849,18]
[314450066,1708361491451,-500.0,0.00046849,18]
[314450067,1708361491587,-500.0,0.00046849,18]
[314450068,1708361491598,-500.0,0.00046849,18]
[314450069,1708361491608,-500.0,0.00046849,18]
[314450070,1708361491618,-500.0,0.00046849,18]
[314450071,1708361491628,-500.0,0.00046849,18]
[314450072,1708361491638,-503.07,0.00046849,18]
[314450073,1708361491648,-500.0,0.00046849,18]
[314450074,1708361491657,-500.0,0.00046849,18]
[314450075,1708361491668,-500.0,0.00046849,18]
[314450076,1708361491677,-500.0,0.00046849,18]
[314450077,1708361491687,-500.0,0.00046849,18]
[314450078,1708361491697,-500.0,0.00046849,18]
[314450079,1708361491707,-500.0,0.00046849,18]
[314450080,1708361491718,-627.47,0.00046849,18]
[314450081,1708361491729,-500.0,0.00046849,18]
[314450082,1708361491739,-500.0,0.00046849,18]
[314450083,1708361491749,-500.0,0.00046849,18]
[314450084,1708361491760,-500.0,0.00046849,18]
[314450085,1708361491769,-500.0,0.00046849,18]
[314450086,1708361491779,-1010.7,0.00046849,18]
[314450087,1708361491789,-518.77264534,0.00046849,18]
[314450088,1708361491798,-533.23128567,0.00046849,18]
[314450089,1708361491807,-500.0,0.00046849,18]
[314450090,1708361491816,-500.0,0.00046849,18]
[314450091,1708361491826,-500.0,0.00046849,18]
[314450092,1708361491838,-500.0,0.00046849,18]
[314450093,1708361491848,-500.0,0.00046849,18]
[314450094,1708361491858,-500.0,0.00046849,18]
[314450095,1708361491867,-500.0,0.00046849,18]
[314450096,1708361491877,-500.0,0.00046849,18]
[314450097,1708361491887,-500.0,0.00046849,18]
[314450098,1708361491897,-511.90970151,0.00046849,18]
[314450099,1708361491908,-500.0,0.00046849,18]
[314450100,1708361491918,-500.0,0.00046849,18]
[314450101,1708361491928,-500.0,0.00046849,18]
[314450102,1708361491941,-500.0,0.00046849,18]
[314450103,1708361491952,-188.09846227,0.00046849,18]
[314450104,1708361491961,-506.88873667,0.00046849,18]
[314450105,1708361491972,-500.0,0.00046849,18]
[314450106,1708361491984,-902.06,0.00046849,18]
[314450107,1708361491994,-500.0,0.00046849,18]
[314450108,1708361492005,-512.05559155,0.00046849,18]
[314450109,1708361492016,-517.53179468,0.00046849,18]
[314450110,1708361492027,-648.25,0.00046849,18]
[314450111,1708361492037,-500.0,0.00046849,18]
[314450112,1708361492047,-500.0,0.00046849,18]
[314450113,1708361492057,-500.0,0.00046849,18]
[314450114,1708361492067,-500.0,0.00046849,18]
[314450115,1708361492077,-509.51136426,0.00046849,18]
[314450116,1708361492086,-500.0,0.00046849,18]
[314450117,1708361492097,-500.0,0.00046849,18]
[314450118,1708361492107,-500.0,0.00046849,18]
[314450119,1708361492117,-600.70331353,0.00046849,18]
[314450120,1708361492127,-500.0,0.00046849,18]
[314450121,1708361492138,-561.24961157,0.00046849,18]
[314450122,1708361492148,-500.0,0.00046849,18]
[314450123,1708361492158,-1429.17,0.00046849,18]
[314450124,1708361492168,-500.0,0.00046849,18]
[314450125,1708361492178,-2454.44,0.00046849,18]
[314450126,1708361492189,-509.9191942,0.00046849,18]
[314450127,1708361492199,-500.0,0.00046849,18]
[314450128,1708361492209,-509.18531425,0.00046849,18]
[314450129,1708361492219,-500.0,0.00046849,18]
[314450130,1708361492230,-500.0,0.00046849,18]
[314450131,1708361492240,-300.0,0.00046849,18]
[314450132,1708361492250,-529.09818837,0.00046849,18]
[314450133,1708361492259,-500.0,0.00046849,18]
[314450134,1708361492268,-500.0,0.00046849,18]
[314450135,1708361492278,-500.0,0.00046849,18]
[314450136,1708361492288,-500.0,0.00046849,18]
[314450137,1708361492297,-500.0,0.00046849,18]
[314450138,1708361492307,-500.0,0.00046849,18]
[314450139,1708361492317,-500.0,0.00046849,18]
[314450140,1708361492327,-500.0,0.00046849,18]
[314450141,1708361492336,-500.0,0.00046849,18]
[314450142,1708361492345,-1000.0,0.00046849,31]
[314450143,1708361492355,-500.0,0.00046849,18]
[314450144,1708361492366,-500.0,0.00046849,18]
[314450145,1708361492375,-500.0,0.00046849,18]
[314450146,1708361492384,-500.0,0.00046849,18]
[314450147,1708361492394,-509.5059433,0.00046849,18]
[314450148,1708361492404,-500.0,0.00046849,18]
[314450149,1708361492413,-500.0,0.00046849,18]
[314450150,1708361492423,-500.0,0.00046849,18]
[314450151,1708361492433,-500.0,0.00046849,18]
[314450152,1708361492442,-500.0,0.00046849,18]
[314450153,1708361492453,-531.08,0.00046849,18]
[314450154,1708361492462,-535.33990195,0.00046849,18]
[314450155,1708361492472,-525.14650575,0.00046849,18]
[314450156,1708361492484,-500.0,0.00046849,18]
[314450157,1708361492494,-509.93704326,0.00046849,18]
[314450158,1708361492504,-500.0,0.00046849,18]
[314450159,1708361492513,-500.0,0.00046849,18]
[314450160,1708361492523,-500.0,0.00046849,18]
[314450161,1708361492532,-500.0,0.00046849,18]
[314450162,1708361492541,-500.0,0.00046849,18]
[314450163,1708361492550,-500.0,0.00046849,18]
[314450164,1708361492560,-523.68615841,0.00046849,18]
[314450165,1708361492569,-526.21,0.00046849,18]
[314450166,1708361492579,-500.0,0.00046849,18]
[314450167,1708361492588,-500.0,0.00046849,7]
[314450168,1708361492598,-502.33416336,0.00046849,18]
[314450169,1708361492607,-500.0,0.00046849,18]
[314450170,1708361492617,-500.0,0.00046849,18]
[314450171,1708361492627,-500.0,0.00046849,18]
[314450172,1708361492637,-500.0,0.00046849,18]
[314450173,1708361492646,-503.1849908,0.00046849,18]
[314450174,1708361492656,-772.92,0.00046849,18]
[314450175,1708361492666,-1184.72,0.00046849,18]
[314450176,1708361492675,-500.0,0.00046849,18]
[314450177,1708361492685,-2181.93,0.00046849,18]
[314450178,1708361492694,-485.56040511,0.00046849,18]
[314450179,1708361492703,-500.0,0.00046849,18]
[314450180,1708361492712,-500.0,0.00046849,18]
[314450181,1708361492722,-500.0,0.00046849,18]
[314450182,1708361492732,-518.39260517,0.00046849,18]
[314450183,1708361492741,-500.0,0.00046849,18]
[314450184,1708361492751,-500.0,0.00046849,18]
[314450185,1708361492761,-500.0,0.00046849,18]
[314450186,1708361492770,-500.0,0.00046849,18]
[314450187,1708361492780,-1164.86,0.00046849,18]
[314450188,1708361492790,-500.0,0.00046849,2]
[314450189,1708361492800,-531.37331956,0.00046849,18]
[314450190,1708361492809,-500.0,0.00046849,18]
[314450191,1708361492819,-527.14,0.00046849,18]
[314450192,1708361492829,-500.0,0.00046849,18]
[314450193,1708361492839,-1394.39,0.00046849,18]
[314450194,1708361492849,-694.62,0.00046849,18]
[314450195,1708361492858,-500.0,0.00046849,18]
[314450196,1708361492868,-500.0,0.00046849,18]
[314450197,1708361492877,-524.48768551,0.00046849,18]
[314450198,1708361492887,-500.0,0.00046849,18]
[314450199,1708361492897,-500.0,0.00046849,18]
[314450200,1708361492906,-500.0,0.00046849,18]
[314450201,1708361492916,-217.86785494,0.00046849,18]
[314450202,1708361492933,-500.0,0.00046849,18]
[314450203,1708361492954,-500.0,0.00046849,18]
[314450204,1708361492977,-500.0,0.00046849,18]
[314450205,1708361493000,-500.0,0.00046849,18]
[314450206,1708361493021,-500.0,0.00046849,18]
[314450207,1708361493044,-500.0,0.00046849,2]
[314450208,1708361493065,-500.0,0.00046849,18]
[314450209,1708361493087,-500.0,0.00046849,18]
[314450210,1708361493110,-500.0,0.00046849,18]
[314450211,1708361493132,-500.0,0.00046849,18]
[314450212,1708361493144,-500.0,0.00046849,18]
[314450213,1708361493155,-721.6,0.00046849,18]
[314450214,1708361493165,-500.0,0.00046849,18]
[314450215,1708361493178,-435.8929329,0.00046849,18]
[314450216,1708361493189,-521.15320634,0.00046849,18]
[314450217,1708361493199,-500.0,0.00046849,18]
[314450218,1708361493208,-500.0,0.00046849,18]
[314450219,1708361493219,-500.0,0.00046849,18]
[314450220,1708361493230,-500.0,0.00046849,18]
[314450221,1708361493241,-500.0,0.00046849,18]
[314450222,1708361493251,-500.0,0.00046849,18]
[314450223,1708361493261,-2768.72,0.00046849,18]
[314450224,1708361493272,-500.0,0.00046849,18]
[314450225,1708361493282,-500.0,0.00046849,2]
[314450226,1708361493292,-564.77718812,0.00046849,18]
[314450227,1708361493302,-500.0,0.00046849,18]
[314450228,1708361493312,-500.0,0.00046849,18]
[314450229,1708361493323,-500.0,0.00046849,18]
[314450230,1708361493332,-1855.51,0.00046849,18]
[314450231,1708361493342,-500.0,0.00046849,18]
[314450232,1708361493352,-500.0,0.00046849,18]
[314450233,1708361493362,-529.34655914,0.00046849,18]
[314450234,1708361493372,-500.0,0.00046849,18]
[314450235,1708361493382,-500.0,0.00046849,18]
[314450236,1708361493392,-500.0,0.00046849,18]
[314450237,1708361493402,-500.0,0.00046849,18]
[314450238,1708361493411,-500.0,0.00046849,18]
[314450239,1708361493421,-500.0,0.00046849,18]
[314450240,1708361493431,-500.0,0.00046849,18]
[314450241,1708361493441,-125000.00000099,0.00046851,10]
[314450242,1708361493451,-154.0583357,0.00046857,30]
[314450243,1708361493461,-2206.82,0.00046868,30]
[314450244,1708361493471,-2206.82,0.00046868,30]
[314450245,1708361493484,-2206.82,0.00046868,30]
[314450246,1708361493494,-2206.82,0.00046868,30]
[314450247,1708361493504,-156.8981365,0.00046871,30]
[314450248,1708361493514,-845664.15925975,0.00046879,2]
[314450249,1708361493525,-163.77965983,0.00046882,30]
[314450250,1708361493535,-668.44442612,0.000469,120]
[314450251,1708361493546,-200.0,0.000469,22]
[314450252,1708361493556,-500.0,0.00046904,30]
[314450253,1708361493566,-261.87086211,0.00046911,30]
[314450254,1708361493575,-154.0583357,0.00046926,30]
[314450255,1708361493585,-151.38715637,0.00046932,60]
[314450256,1708361493594,-152.35209622,0.00046932,60]
[314450257,1708361493604,-500.0,0.00046933,14]
[314450258,1708361493614,-7000.0,0.00046933,2]
[314450259,1708361493624,-150.015539,0.00046977,30]
[314450260,1708361493633,-292.48,0.0004698,120]
[314450261,1708361493643,-199.1,0.0004698,3]
[314450262,1708361493654,-430.0,0.0004698,120]
[314450263,1708361493663,-623.95,0.0004698,120]
[314450264,1708361493673,-372.67,0.0004698,120]
[314450265,1708361493683,-726.08,0.0004698,120]
[314450266,1708361493693,-663.99,0.0004698,120]
[314450267,1708361493703,-162.33,0.0004698,30]
[314450268,1708361493713,-200.0,0.00046987,73]
[314450269,1708361493723,-269.57,0.0004699,120]
[314450270,1708361493734,-291.0,0.0004699,120]
[314450271,1708361493861,-195.0,0.0004699,3]
[314450272,1708361493873,-430.0,0.0004699,120]
[314450273,1708361493882,-618.0,0.0004699,120]
[314450274,1708361493893,-364.0,0.0004699,120]
[314450275,1708361493903,-725.0,0.0004699,120]
[314450276,1708361493912,-662.0,0.0004699,120]
[314450277,1708361493923,-156.0,0.0004699,30]
[314450278,1708361493935,-305.92135384,0.00046999,40]
[314450279,1708361493945,-100000.0,0.00047,37]
[314450280,1708361493955,-197.34809834,0.00047,15]
[314450281,1708361493965,-57120.47793583,0.00047,2]
[314450282,1708361493977,-300.0,0.00047,47]
[314450283,1708361493987,-1417.567606,0.00047,33]
[314450284,1708361493997,-1000.0,0.00047,5]
[314450285,1708361494008,-1026.16454024,0.00047,7]
[314450286,1708361494018,-18250.8438163,0.00047,60]
[314450287,1708361494029,-500.0,0.00047,2]
[314450288,1708361494038,-250.0,0.00047,120]
[314450289,1708361494049,-20000.0,0.00047,10]
[314450290,1708361494059,-2877.73295978,0.00047,14]
[314450291,1708361494070,-10000.0,0.00047,5]
[314450292,1708361494080,-1020.0,0.00047,30]
[314450293,1708361494090,-7342.9280419,0.00047,30]
[314450294,1708361494100,-70784.90460765,0.00047,4]
[314450295,1708361494110,-300.0,0.00047,48]
[314450296,1708361494121,-1791.27,0.00047,7]
[314450297,1708361494131,-300.0,0.00047,10]
[314450298,1708361494140,-18216.44547696,0.00047,2]
[314450299,1708361494150,-151.0,0.00047,18]
[314450300,1708361494160,-768.048,0.00047014,60]
[314450301,1708361494170,-210.0,0.0004708,30]
[314450302,1708361494180,-500.0,0.00047082,14]
[314450303,1708361494190,-290.3617882,0.00047093,30]
[314450304,1708361494200,-230.12520523,0.00047107,7]
[314450305,1708361494210,-313.74014338,0.00047107,7]
[314450306,1708361494220,-500.0,0.00047123,18]
[314450307,1708361494230,-500.0,0.00047123,18]
[314450308,1708361494241,-578.9688368,0.00047123,18]
[314450309,1708361494252,-557.79966659,0.00047123,18]
[314450310,1708361494262,-500.0,0.00047123,18]
[314450311,1708361494272,-647.86217752,0.00047123,18]
[314450312,1708361494283,-500.0,0.00047123,18]
[314450313,1708361494294,-500.0,0.00047123,18]
[314450314,1708361494304,-500.0,0.00047123,18]
[314450315,1708361494315,-528.6436304,0.00047123,10]
[314450316,1708361494325,-602.26387668,0.00047123,18]
[314450317,1708361494335,-385.2825164,0.00047123,18]
[314450318,1708361494345,-534.84,0.00047123,2]
[314450319,1708361494356,-500.0,0.00047123,18]
[314450320,1708361494366,-500.0,0.00047123,18]
[314450321,1708361494376,-500.0,0.00047123,18]
[314450322,1708361494386,-500.0,0.00047123,18]
[314450323,1708361494396,-500.0,0.00047123,18]
[314450324,1708361494405,-174.81740386,0.00047123,18]
[314450325,1708361494416,-500.0,0.00047123,18]
[314450326,1708361494426,-500.0,0.00047123,18]
[314450327,1708361494436,-800.0,0.00047123,2]
[314450328,1708361494446,-500.0,0.00047123,18]
[314450329,1708361494456,-518.50580459,0.00047123,18]
[314450330,1708361494467,-528.60320637,0.00047123,18]
[314450331,1708361494479,-1107.1,0.00047123,18]
[314450332,1708361494489,-500.0,0.00047123,18]
[314450333,1708361494499,-500.0,0.00047123,18]
[314450334,1708361494509,-500.0,0.00047123,18]
[314450335,1708361494520,-500.0,0.00047123,18]
[314450336,1708361494530,-512.00477394,0.00047123,18]
[314450337,1708361494540,-209.89293396,0.00047123,18]
[314450338,1708361494550,-500.0,0.00047123,18]
[314450339,1708361494560,-500.0,0.00047123,18]
[314450340,1708361494570,-500.0,0.00047123,18]
[314450341,1708361494581,-535.55218259,0.00047123,18]
[314450342,1708361494591,-500.0,0.00047123,18]
[314450343,1708361494601,-500.0,0.00047123,18]
[314450344,1708361494611,-500.0,0.00047123,18]
[314450345,1708361494621,-500.0,0.00047123,18]
[314450346,1708361494631,-217.21120188,0.00047123,120]
[314450347,1708361494641,-500.0,0.00047123,18]
[314450348,1708361494651,-500.0,0.00047123,18]
[314450349,1708361494662,-500.0,0.00047123,18]
[314450350,1708361494671,-500.0,0.00047123,18]
[314450351,1708361494681,-550.35930416,0.00047123,18]
[314450352,1708361494692,-500.0,0.00047123,18]
[314450353,1708361494702,-500.0,0.00047123,18]
[314450354,1708361494713,-527.37665536,0.00047123,18]
[314450355,1708361494723,-500.0,0.00047123,18]